[Event "British Rapidplay Championship 2023"]
[Site "Mercure Bradford, Bankfield Hotel"]
[Date "2023.04.16"]
[Round "8.5"]
[White "Hryshchenko, Kamila"]
[Black "Cook, Phil"]
[Result "1/2-1/2"]
[TimeControl "15 minutes plus 10 seconds per move"]
[WhiteElo "2019"]
[BlackElo "2126"]

1. e4 {[%clk 00:15:17]} {[%emt 00:00:04]} d6 {[%clk 00:15:15]} {[%emt
00:00:05]} 2. d4 {[%clk 00:15:25]} {[%emt 00:00:02]} Nf6 {[%clk 00:15:22]}
{[%emt 00:00:03]} 3. Nc3 {[%clk 00:15:34]} {[%emt 00:00:01]} e5 {[%clk
00:15:29]} {[%emt 00:00:03]} 4. Nf3 {[%clk 00:15:41]} {[%emt 00:00:02]} exd4
{[%clk 00:15:36]} {[%emt 00:00:04]} 5. Nxd4 {[%clk 00:15:46]} {[%emt 00:00:05]}
Be7 {[%clk 00:15:42]} {[%emt 00:00:04]} 6. Be2 {[%clk 00:15:54]} {[%emt
00:00:02]} O-O {[%clk 00:15:48]} {[%emt 00:00:04]} 7. O-O {[%clk 00:16:01]}
{[%emt 00:00:03]} Re8 {[%clk 00:15:52]} {[%emt 00:00:06]} 8. Be3 {[%clk
00:15:58]} {[%emt 00:00:13]} Bf8 {[%clk 00:15:37]} {[%emt 00:00:25]} 9. f3
{[%clk 00:15:48]} {[%emt 00:00:20]} d5 {[%clk 00:15:03]} {[%emt 00:00:44]} 10.
Bg5 {[%clk 00:15:49]} {[%emt 00:00:09]} c5 {[%clk 00:11:52]} {[%emt 00:03:20]}
11. Nb3 {[%clk 00:15:01]} {[%emt 00:00:59]} d4 {[%clk 00:11:14]} {[%emt
00:00:48]} 12. Nd5 {[%clk 00:14:52]} {[%emt 00:00:19]} Nbd7 {[%clk 00:10:00]}
{[%emt 00:01:25]} 13. a4 {[%clk 00:12:30]} {[%emt 00:02:31]} h6 {[%clk
00:09:58]} {[%emt 00:00:12]} 14. Bh4 {[%emt 00:00:43]} g5 {[%clk 00:09:47]} 15.
Nxf6+ {[%clk 00:12:05]} {[%emt 00:00:23]} Nxf6 {[%clk 00:09:26]} {[%emt
00:00:31]} 16. Bf2 {[%clk 00:11:43]} {[%emt 00:00:32]} Be6 {[%clk 00:08:57]}
{[%emt 00:00:39]} 17. Nd2 {[%clk 00:11:39]} {[%emt 00:00:14]} Nh5 {[%clk
00:08:24]} {[%emt 00:00:42]} 18. g3 {[%clk 00:11:45]} {[%emt 00:00:04]} Rc8
{[%clk 00:07:21]} {[%emt 00:01:14]} 19. Bc4 {[%clk 00:09:14]} {[%emt 00:02:41]}
Nf6 {[%clk 00:06:35]} {[%emt 00:00:55]} 20. Qe2 {[%clk 00:08:29]} {[%emt
00:00:56]} Nd7 {[%clk 00:06:22]} {[%emt 00:00:23]} 21. f4 {[%clk 00:08:10]}
{[%emt 00:00:29]} a6 {[%clk 00:05:18]} {[%emt 00:01:14]} 22. a5 {[%clk
00:08:08]} {[%emt 00:00:12]} Bg7 {[%clk 00:05:05]} {[%emt 00:00:22]} 23. Bxe6
{[%clk 00:06:39]} {[%emt 00:01:40]} Rxe6 {[%clk 00:05:08]} {[%emt 00:00:08]} 24.
Qc4 {[%clk 00:06:32]} {[%emt 00:00:17]} gxf4 {[%clk 00:03:02]} {[%emt
00:02:16]} 25. gxf4 {[%clk 00:06:38]} {[%emt 00:00:03]} Nf6 {[%clk 00:02:45]}
{[%emt 00:00:27]} 26. Bh4 {[%clk 00:06:13]} {[%emt 00:00:35]} Qe8 {[%clk
00:02:53]} {[%emt 00:00:03]} 27. Bxf6 {[%clk 00:05:00]} {[%emt 00:01:22]} Rxf6
{[%clk 00:02:25]} {[%emt 00:00:38]} 28. Ra3 {[%clk 00:04:13]} {[%emt 00:00:57]}
Rcc6 {[%clk 00:02:25]} {[%emt 00:00:09]} 29. Rg3 {[%clk 00:04:00]} {[%emt
00:00:23]} Rg6 {[%clk 00:02:29]} {[%emt 00:00:07]} 30. Kf2 {[%clk 00:01:47]}
{[%emt 00:02:23]} Qe7 {[%clk 00:02:37]} {[%emt 00:00:02]} 31. Rfg1 {[%clk
00:01:04]} {[%emt 00:00:53]} Qh4 {[%clk 00:02:41]} {[%emt 00:00:06]} 32. f5
{[%clk 00:00:15]} {[%emt 00:00:59]} Rxg3 {[%clk 00:02:23]} {[%emt 00:00:27]} 33.
hxg3 {[%clk 00:00:24]} {[%emt 00:00:02]} Qg5 {[%clk 00:02:17]} {[%emt
00:00:16]} 34. Qd3 {[%clk 00:00:30]} {[%emt 00:00:04]} Be5 {[%clk 00:01:38]}
{[%emt 00:00:48]} 35. Nc4 {[%clk 00:00:25]} {[%emt 00:00:16]} Qf6 {[%clk
00:01:38]} {[%emt 00:00:10]} 36. Rh1 {[%clk 00:00:30]} {[%emt 00:00:06]} Kg7
{[%clk 00:01:45]} {[%emt 00:00:03]} 37. Qf3 {[%clk 00:00:35]} {[%emt 00:00:05]}
Rc8 {[%clk 00:01:34]} {[%emt 00:00:20]} 38. Qg4+ {[%clk 00:00:41]} {[%emt
00:00:04]} Kh7 {[%clk 00:01:43]} {[%emt 00:00:02]} 39. Qh5 {[%clk 00:00:46]}
{[%emt 00:00:04]} Re8 {[%clk 00:01:41]} {[%emt 00:00:12]} 40. Kf3 {[%clk
00:00:50]} {[%emt 00:00:07]} Bc7 {[%clk 00:01:45]} {[%emt 00:00:05]} 41. g4
{[%clk 00:00:45]} {[%emt 00:00:15]} Rg8 {[%clk 00:01:51]} {[%emt 00:00:04]} 42.
e5 {[%clk 00:00:37]} {[%emt 00:00:18]} Qg7 {[%clk 00:01:25]} {[%emt 00:00:36]}
43. f6 {[%clk 00:00:31]} {[%emt 00:00:16]} Qg5 {[%clk 00:01:20]} {[%emt
00:00:15]} 44. Qxg5 {[%clk 00:00:37]} {[%emt 00:00:03]} Rxg5 {[%clk 00:01:28]}
{[%emt 00:00:03]} 45. Kf4 {[%clk 00:00:44]} {[%emt 00:00:03]} Kg6 {[%clk
00:01:32]} {[%emt 00:00:06]} 46. Rh3 {[%clk 00:00:48]} {[%emt 00:00:06]} Bb8
{[%clk 00:01:23]} {[%emt 00:00:19]} 47. Rb3 {[%clk 00:00:52]} {[%emt 00:00:07]}
h5 {[%clk 00:01:26]} {[%emt 00:00:07]} 48. gxh5+ {[%clk 00:01:00]} {[%emt
00:00:02]} Rxh5 {[%clk 00:01:33]} {[%emt 00:00:02]} 49. Rxb7 {[%clk 00:01:06]}
{[%emt 00:00:04]} Rh4+ {[%clk 00:01:30]} {[%emt 00:00:13]} 50. Kg3 {[%clk
00:01:14]} {[%emt 00:00:02]} Rh8 {[%clk 00:01:39]} {[%emt 00:00:01]} 51. Kg4
{[%clk 00:01:08]} {[%emt 00:00:17]} Re8 {[%clk 00:01:43]} {[%emt 00:00:05]} 52.
Re7 {[%clk 00:01:16]} {[%emt 00:00:02]} Rd8 {[%clk 00:01:40]} {[%emt 00:00:13]}
53. Nb6 {[%clk 00:01:09]} {[%emt 00:00:18]} d3 {[%clk 00:01:09]} {[%emt
00:00:40]} 54. cxd3 {[%clk 00:01:17]} {[%emt 00:00:02]} Rxd3 {[%clk 00:01:15]}
{[%emt 00:00:04]} 55. Nd7 {[%clk 00:01:25]} {[%emt 00:00:02]} Rd4+ {[%clk
00:01:16]} {[%emt 00:00:09]} 56. Kf3 {[%clk 00:01:32]} {[%emt 00:00:04]} Bc7
{[%clk 00:01:22]} {[%emt 00:00:03]} 57. e6 {[%clk 00:01:17]} {[%emt 00:00:25]}
fxe6 {[%clk 00:01:27]} {[%emt 00:00:05]} 58. f7 {[%clk 00:01:23]} {[%emt
00:00:05]} Rf4+ {[%clk 00:01:32]} {[%emt 00:00:05]} 59. Ke3 {[%clk 00:01:24]}
{[%emt 00:00:09]} Rxf7 {[%clk 00:01:40]} {[%emt 00:00:02]} 60. Rxe6+ {[%clk
00:01:07]} {[%emt 00:00:27]} Kf5 {[%clk 00:01:19]} {[%emt 00:00:30]} 61. Nxc5
{[%clk 00:01:11]} {[%emt 00:00:06]} Bxa5 {[%clk 00:01:04]} {[%emt 00:00:25]} 62.
Rxa6 {[%clk 00:01:18]} {[%emt 00:00:03]} Bb4 {[%clk 00:01:00]} {[%emt
00:00:14]} 63. Nd3 {[%clk 00:01:19]} {[%emt 00:00:09]} Bf8 {[%clk 00:01:01]}
{[%emt 00:00:08]} 64. Rc6 {[%clk 00:01:08]} {[%emt 00:00:22]} Rb7 {[%clk
00:00:49]} {[%emt 00:00:22]} 65. Rc8 {[%clk 00:00:48]} {[%emt 00:00:30]} Be7
{[%clk 00:00:54]} {[%emt 00:00:05]} 66. Rc6 {[%clk 00:00:44]} {[%emt 00:00:14]}
Rb3 {[%clk 00:00:28]} {[%emt 00:00:36]} 67. Kd2 {[%clk 00:00:38]} {[%emt
00:00:16]} Bf6 {[%clk 00:00:18]} {[%emt 00:00:19]} 68. Kc2 {[%clk 00:00:40]}
{[%emt 00:00:09]} Rb5 {[%clk 00:00:25]} {[%emt 00:00:03]} 69. b3 {[%clk
00:00:28]} {[%emt 00:00:22]} Bd4 {[%clk 00:00:22]} {[%emt 00:00:13]} 70. Rd6
{[%clk 00:00:25]} {[%emt 00:00:14]} Bg7 {[%clk 00:00:15]} {[%emt 00:00:16]} 71.
Ra6 {[%clk 00:00:14]} {[%emt 00:00:22]} Rb7 {[%clk 00:00:11]} {[%emt 00:00:13]}
72. Rc6 {[%clk 00:00:16]} {[%emt 00:00:10]} Bd4 {[%clk 00:00:15]} {[%emt
00:00:04]} 73. b4 {[%clk 00:00:21]} {[%emt 00:00:05]} Bg7 {[%clk 00:00:18]}
{[%emt 00:00:07]} 74. Rc8 {[%clk 00:00:24]} {[%emt 00:00:07]} Rb5 {[%clk
00:00:21]} {[%emt 00:00:07]} 75. Kb3 {[%clk 00:00:31]} {[%emt 00:00:03]} Ke4
{[%clk 00:00:18]} {[%emt 00:00:13]} 76. Kc4 {[%clk 00:00:40]} {[%emt 00:00:02]}
Rb6 {[%clk 00:00:17]} {[%emt 00:00:10]} 77. Re8 {[%clk 00:00:48]} {[%emt
00:00:03]} Kf5 {[%clk 00:00:24]} {[%emt 00:00:02]} 78. Kc5 {[%clk 00:00:53]}
{[%emt 00:00:06]} Rb7 {[%clk 00:00:28]} {[%emt 00:00:05]} 79. Kc6 {[%clk
00:01:00]} {[%emt 00:00:04]} Rf7 {[%clk 00:00:32]} {[%emt 00:00:05]} 80. b5
{[%clk 00:01:06]} {[%emt 00:00:05]} Bd4 {[%clk 00:00:36]} {[%emt 00:00:05]} 81.
Rd8 {[%clk 00:01:03]} {[%emt 00:00:13]} Rf6+ {[%clk 00:00:38]} {[%emt
00:00:08]} 82. Kd5 {[%clk 00:00:57]} {[%emt 00:00:17]} Rb6 {[%clk 00:00:34]}
{[%emt 00:00:14]} 83. Rf8 {[%clk 00:01:02]} {[%emt 00:00:05]} Kg6 {[%clk
00:00:41]} {[%emt 00:00:02]} 84. Kc4 {[%clk 00:01:02]} {[%emt 00:00:11]} Be3
{[%clk 00:00:44]} {[%emt 00:00:06]} 85. Rc8 {[%clk 00:01:02]} {[%emt 00:00:10]}
Kf7 {[%clk 00:00:45]} {[%emt 00:00:09]} 86. Nb4 {[%clk 00:01:06]} {[%emt
00:00:06]} Rh6 {[%clk 00:00:37]} {[%emt 00:00:18]} 87. Nc6 {[%clk 00:00:48]}
{[%emt 00:00:29]} Rh4+ {[%clk 00:00:37]} {[%emt 00:00:09]} 88. Kd5 {[%clk
00:00:53]} {[%emt 00:00:05]} Rh5+ {[%clk 00:00:39]} {[%emt 00:00:09]} 89. Ne5+
{[%clk 00:01:02]} Kf6 {[%clk 00:00:36]} {[%emt 00:00:14]} 90. Rf8+ {[%clk
00:00:49]} {[%emt 00:00:23]} Ke7 {[%clk 00:00:39]} {[%emt 00:00:06]} 91. Rf3
{[%clk 00:00:54]} {[%emt 00:00:06]} Bb6 {[%clk 00:00:36]} {[%emt 00:00:13]} 92.
Rc3 {[%clk 00:00:27]} {[%emt 00:00:37]} Bg1 {[%clk 00:00:24]} {[%emt 00:00:21]}
93. Rc7+ {[%clk 00:00:18]} {[%emt 00:00:20]} Kd8 {[%clk 00:00:25]} {[%emt
00:00:09]} 94. Rg7 {[%clk 00:00:20]} {[%emt 00:00:08]} Bh2 {[%clk 00:00:22]}
{[%emt 00:00:13]} 95. Rg8+ {[%clk 00:00:19]} {[%emt 00:00:11]} Ke7 {[%clk
00:00:29]} {[%emt 00:00:02]} 96. Rg7+ {[%clk 00:00:25]} {[%emt 00:00:04]} Kd8
{[%clk 00:00:38]} {[%emt 00:00:02]} 97. Rg8+ {[%clk 00:00:17]} {[%emt
00:00:18]} Ke7 {[%clk 00:00:46]} {[%emt 00:00:02]} 98. Rg7+ {[%clk 00:00:16]}
{[%emt 00:00:11]} Kd8 {[%clk 00:00:53]} {[%emt 00:00:01]} 99. b6 {[%clk
00:00:15]} {[%emt 00:00:13]} Rxe5+ {[%clk 00:00:54]} {[%emt 00:00:08]} 100. Kc6
{[%clk 00:00:21]} {[%emt 00:00:05]} Re6+ {[%clk 00:00:43]} {[%emt 00:00:20]}
101. Kb7 {[%clk 00:00:29]} {[%emt 00:00:02]} Re7+ {[%clk 00:00:51]} {[%emt
00:00:08]} 1/2-1/2

[Event "British Rapidplay Championship 2023"]
[Site "Mercure Bradford, Bankfield Hotel"]
[Date "2023.04.16"]
[Round "8.6"]
[White "Wells, Peter K"]
[Black "Senior, Gary"]
[Result "1-0"]
[TimeControl "15 minutes plus 10 seconds per move"]
[WhiteElo "2466"]
[BlackElo "1911"]

1. d4 {[%clk 00:15:15]} {[%emt 00:00:04]} f5 {[%clk 00:15:18]} {[%emt
00:00:02]} 2. e4 {[%clk 00:14:59]} {[%emt 00:00:26]} fxe4 {[%clk 00:15:19]}
{[%emt 00:00:08]} 3. Nc3 {[%clk 00:15:08]} {[%emt 00:00:02]} Nf6 {[%clk
00:15:22]} {[%emt 00:00:06]} 4. Bg5 {[%clk 00:15:16]} {[%emt 00:00:03]} c6
{[%clk 00:15:11]} {[%emt 00:00:21]} 5. Qd2 {[%clk 00:12:03]} {[%emt 00:03:23]}
Qa5 {[%clk 00:13:01]} {[%emt 00:02:20]} 6. f3 {[%clk 00:08:31]} {[%emt
00:03:42]} e5 {[%clk 00:11:48]} {[%emt 00:01:23]} 7. Bxf6 {[%clk 00:07:40]}
{[%emt 00:01:01]} gxf6 {[%clk 00:11:54]} {[%emt 00:00:04]} 8. fxe4 {[%clk
00:07:48]} {[%emt 00:00:02]} d6 {[%clk 00:06:59]} {[%emt 00:05:05]} 9. Nf3
{[%clk 00:06:59]} {[%emt 00:00:59]} Be6 {[%clk 00:05:34]} {[%emt 00:01:35]} 10.
Be2 {[%clk 00:05:02]} {[%emt 00:02:07]} Nd7 {[%clk 00:04:48]} {[%emt 00:00:56]}
11. d5 {[%clk 00:02:56]} {[%emt 00:02:16]} cxd5 {[%clk 00:04:45]} {[%emt
00:00:14]} 12. exd5 {[%clk 00:03:05]} {[%emt 00:00:01]} Bg4 {[%clk 00:04:34]}
{[%emt 00:00:20]} 13. O-O {[%clk 00:02:42]} {[%emt 00:00:34]} O-O-O {[%clk
00:03:59]} {[%emt 00:00:45]} 14. Nh4 {[%clk 00:02:49]} {[%emt 00:00:02]} Bxe2
{[%clk 00:03:01]} {[%emt 00:01:07]} 15. Qxe2 {[%clk 00:02:58]} {[%emt
00:00:01]} Nb6 {[%clk 00:02:27]} {[%emt 00:00:44]} 16. Qd3 {[%clk 00:02:07]}
{[%emt 00:01:02]} Bh6 {[%clk 00:01:29]} {[%emt 00:01:07]} 17. Nf5 {[%clk
00:02:15]} {[%emt 00:00:03]} Bf8 {[%clk 00:01:27]} {[%emt 00:00:12]} 18. a4
{[%clk 00:02:01]} {[%emt 00:00:24]} Rg8 {[%clk 00:01:32]} {[%emt 00:00:05]} 19.
Kh1 {[%clk 00:01:59]} {[%emt 00:00:13]} Rg6 {[%clk 00:01:27]} {[%emt 00:00:13]}
20. b4 {[%clk 00:01:54]} {[%emt 00:00:16]} Qxb4 {[%clk 00:01:26]} {[%emt
00:00:11]} 21. a5 {[%clk 00:02:03]} {[%emt 00:00:01]} Nd7 {[%clk 00:01:13]}
{[%emt 00:00:23]} 22. Ra4 {[%clk 00:02:09]} {[%emt 00:00:04]} e4 {[%clk
00:00:47]} {[%emt 00:00:36]} 23. Qd2 {[%clk 00:01:00]} {[%emt 00:01:19]} Qc5
{[%clk 00:00:39]} {[%emt 00:00:18]} 24. Nxe4 {[%clk 00:01:03]} {[%emt
00:00:08]} Qb5 {[%clk 00:00:29]} {[%emt 00:00:19]} 25. Nexd6+ {[%clk 00:01:10]}
{[%emt 00:00:03]} 1-0

[Event "British Rapidplay Championship 2023"]
[Site "Mercure Bradford, Bankfield Hotel"]
[Date "2023.04.16"]
[Round "8.7"]
[White "Ashton, Adam G"]
[Black "Larchikov, Maksym"]
[Result "1-0"]
[TimeControl "15 minutes plus 10 seconds per move"]
[WhiteElo "2390"]
[BlackElo "1871"]

1. e4 {[%clk 00:15:17]} {[%emt 00:00:02]} c6 {[%clk 00:15:18]} {[%emt
00:00:03]} 2. d4 {[%clk 00:15:23]} {[%emt 00:00:03]} d5 {[%clk 00:15:26]}
{[%emt 00:00:03]} 3. e5 {[%clk 00:15:32]} Bf5 {[%clk 00:15:32]} {[%emt
00:00:03]} 4. Nd2 {[%clk 00:15:41]} {[%emt 00:00:02]} e6 {[%clk 00:15:39]}
{[%emt 00:00:03]} 5. Nb3 {[%clk 00:15:49]} {[%emt 00:00:02]} Nd7 {[%clk
00:15:38]} {[%emt 00:00:11]} 6. Nf3 {[%clk 00:15:55]} {[%emt 00:00:04]} c5
{[%clk 00:15:07]} {[%emt 00:00:42]} 7. dxc5 {[%clk 00:15:47]} {[%emt 00:00:17]}
Nxc5 {[%clk 00:14:18]} {[%emt 00:00:59]} 8. Nxc5 {[%clk 00:15:52]} {[%emt
00:00:06]} Qa5+ {[%clk 00:14:19]} {[%emt 00:00:09]} 9. c3 {[%clk 00:16:00]}
{[%emt 00:00:02]} Qxc5 {[%clk 00:14:23]} {[%emt 00:00:06]} 10. Be3 {[%clk
00:15:43]} {[%emt 00:00:26]} Qa5 {[%clk 00:11:44]} {[%emt 00:02:49]} 11. b4
{[%clk 00:15:30]} {[%emt 00:00:23]} Qc7 {[%clk 00:11:38]} {[%emt 00:00:16]} 12.
Bb5+ {[%clk 00:15:27]} {[%emt 00:00:12]} Kd8 {[%clk 00:11:34]} {[%emt
00:00:13]} 13. O-O {[%clk 00:15:09]} {[%emt 00:00:28]} Ne7 {[%clk 00:10:56]}
{[%emt 00:00:48]} 14. c4 {[%clk 00:14:42]} {[%emt 00:00:38]} a6 {[%clk
00:09:49]} {[%emt 00:01:17]} 15. cxd5 {[%clk 00:13:08]} {[%emt 00:01:44]} axb5
{[%clk 00:08:10]} {[%emt 00:01:49]} 16. d6 {[%clk 00:10:30]} {[%emt 00:02:48]}
Qd7 {[%clk 00:08:08]} {[%emt 00:00:12]} 17. dxe7+ {[%clk 00:09:50]} {[%emt
00:00:51]} Bxe7 {[%clk 00:08:14]} {[%emt 00:00:03]} 18. Nd4 {[%clk 00:09:44]}
{[%emt 00:00:17]} Be4 {[%clk 00:06:55]} {[%emt 00:01:29]} 19. Qe2 {[%clk
00:08:08]} {[%emt 00:01:46]} Bxb4 {[%clk 00:06:02]} {[%emt 00:01:03]} 20. Rfd1
{[%clk 00:08:15]} {[%emt 00:00:04]} Bd5 {[%clk 00:05:41]} {[%emt 00:00:32]} 21.
Nxb5 {[%clk 00:08:19]} {[%emt 00:00:05]} Ke7 {[%clk 00:03:59]} {[%emt
00:01:52]} 22. a3 {[%clk 00:08:08]} {[%emt 00:00:22]} Ra5 {[%clk 00:03:50]}
{[%emt 00:00:18]} 23. axb4 {[%clk 00:07:44]} {[%emt 00:00:34]} Qxb5 {[%clk
00:03:33]} {[%emt 00:00:27]} 24. Bc5+ {[%clk 00:07:32]} {[%emt 00:00:21]} Kd7
{[%clk 00:01:34]} {[%emt 00:02:09]} 25. Rxd5+ {[%clk 00:07:34]} {[%emt
00:00:09]} 1-0

[Event "British Rapidplay Championship 2023"]
[Site "Mercure Bradford, Bankfield Hotel"]
[Date "2023.04.16"]
[Round "8.8"]
[White "Smith, Andrew P"]
[Black "Pitcher, John"]
[Result "0-1"]
[TimeControl "15 minutes plus 10 seconds per move"]
[WhiteElo "2125"]
[BlackElo "2358"]

1. e4 {[%clk 00:15:17]} {[%emt 00:00:02]} c5 {[%clk 00:15:11]} {[%emt
00:00:09]} 2. Nf3 {[%clk 00:15:17]} {[%emt 00:00:10]} e6 {[%clk 00:15:16]}
{[%emt 00:00:05]} 3. b3 {[%clk 00:15:12]} {[%emt 00:00:16]} b6 {[%clk
00:15:21]} {[%emt 00:00:04]} 4. Bb2 {[%clk 00:14:52]} {[%emt 00:00:30]} Bb7
{[%clk 00:15:28]} {[%emt 00:00:03]} 5. Nc3 {[%clk 00:14:40]} {[%emt 00:00:23]}
Nc6 {[%clk 00:15:13]} {[%emt 00:00:25]} 6. Be2 {[%clk 00:12:37]} {[%emt
00:02:13]} Nf6 {[%clk 00:14:40]} {[%emt 00:00:43]} 7. O-O {[%clk 00:11:57]}
{[%emt 00:00:51]} Be7 {[%clk 00:11:49]} {[%emt 00:03:00]} 8. d4 {[%clk
00:09:35]} {[%emt 00:02:32]} cxd4 {[%clk 00:11:56]} {[%emt 00:00:03]} 9. Nxd4
{[%clk 00:09:41]} {[%emt 00:00:05]} O-O {[%clk 00:11:52]} {[%emt 00:00:13]} 10.
Kh1 {[%clk 00:09:34]} {[%emt 00:00:16]} Rc8 {[%clk 00:10:50]} {[%emt 00:01:12]}
11. f4 {[%clk 00:09:29]} {[%emt 00:00:15]} Nxd4 {[%clk 00:05:23]} {[%emt
00:05:37]} 12. Qxd4 {[%clk 00:09:36]} {[%emt 00:00:02]} d6 {[%clk 00:05:25]}
{[%emt 00:00:08]} 13. Bd3 {[%clk 00:04:45]} {[%emt 00:05:02]} d5 {[%clk
00:04:18]} {[%emt 00:01:17]} 14. exd5 {[%clk 00:04:19]} {[%emt 00:00:36]} Bc5
{[%clk 00:03:53]} {[%emt 00:00:35]} 15. Qe5 {[%clk 00:04:05]} {[%emt 00:00:25]}
exd5 {[%clk 00:02:43]} {[%emt 00:01:18]} 16. Nb5 {[%clk 00:02:35]} {[%emt
00:01:41]} Re8 {[%clk 00:01:40]} {[%emt 00:01:13]} 17. Qf5 {[%clk 00:02:14]}
{[%emt 00:00:31]} Ne4 {[%clk 00:01:38]} {[%emt 00:00:12]} 18. Qg4 {[%clk
00:01:00]} {[%emt 00:01:24]} Bf8 {[%clk 00:01:32]} {[%emt 00:00:15]} 19. Nxa7
{[%clk 00:00:55]} {[%emt 00:00:16]} Ra8 {[%clk 00:01:21]} {[%emt 00:00:21]} 20.
Nb5 {[%clk 00:01:03]} {[%emt 00:00:02]} Qe7 {[%clk 00:00:37]} {[%emt 00:00:53]}
21. a4 {[%clk 00:01:05]} {[%emt 00:00:09]} Rac8 {[%clk 00:00:40]} {[%emt
00:00:07]} 22. Nd4 {[%clk 00:01:07]} {[%emt 00:00:08]} Qf6 {[%clk 00:00:44]}
{[%emt 00:00:06]} 23. Rab1 {[%clk 00:00:42]} {[%emt 00:00:36]} Qg6 {[%clk
00:00:26]} {[%emt 00:00:26]} 24. Qxg6 {[%clk 00:00:31]} {[%emt 00:00:21]} hxg6
{[%clk 00:00:35]} {[%emt 00:00:01]} 25. Rbd1 {[%clk 00:00:23]} {[%emt
00:00:18]} Be7 {[%clk 00:00:40]} {[%emt 00:00:05]} 26. Nf3 {[%clk 00:00:24]}
{[%emt 00:00:08]} Bc5 {[%clk 00:00:41]} {[%emt 00:00:10]} 27. Nd4 {[%clk
00:00:22]} {[%emt 00:00:13]} Re7 {[%clk 00:00:34]} {[%emt 00:00:16]} 28. f5
{[%clk 00:00:27]} {[%emt 00:00:05]} g5 {[%clk 00:00:39]} {[%emt 00:00:04]} 29.
Rde1 {[%clk 00:00:16]} {[%emt 00:00:22]} Rce8 {[%clk 00:00:48]} {[%emt
00:00:01]} 30. Re2 {[%clk 00:00:18]} {[%emt 00:00:08]} g4 {[%clk 00:00:34]}
{[%emt 00:00:22]} 31. Bb5 {[%clk 00:00:25]} {[%emt 00:00:04]} Rc8 {[%clk
00:00:40]} {[%emt 00:00:04]} 32. f6 {[%clk 00:00:30]} {[%emt 00:00:05]} Nxf6
{[%clk 00:00:42]} {[%emt 00:00:08]} 33. Rxe7 {[%clk 00:00:34]} {[%emt
00:00:06]} Bxe7 {[%clk 00:00:50]} {[%emt 00:00:02]} 34. Nf5 {[%clk 00:00:41]}
{[%emt 00:00:03]} Bd8 {[%clk 00:00:56]} {[%emt 00:00:04]} 35. Bd3 {[%clk
00:00:39]} {[%emt 00:00:13]} Ne4 {[%clk 00:00:53]} {[%emt 00:00:12]} 36. Bxg7
{[%clk 00:00:23]} {[%emt 00:00:26]} Rc6 {[%clk 00:00:57]} {[%emt 00:00:06]} 37.
Bd4 {[%clk 00:00:24]} {[%emt 00:00:09]} Bc8 {[%clk 00:00:59]} {[%emt 00:00:08]}
38. Ne3 {[%clk 00:00:33]} {[%emt 00:00:02]} g3 {[%clk 00:01:06]} {[%emt
00:00:03]} 39. Nxd5 {[%clk 00:00:34]} {[%emt 00:00:08]} f5 {[%clk 00:01:01]}
{[%emt 00:00:15]} 40. Bc4 {[%clk 00:00:27]} {[%emt 00:00:17]} Kh7 {[%clk
00:00:59]} {[%emt 00:00:11]} 41. Ne3 {[%clk 00:00:00]} {[%emt 00:00:28]} 0-1

[Event "British Rapidplay Championship 2023"]
[Site "Mercure Bradford, Bankfield Hotel"]
[Date "2023.04.16"]
[Round "8.9"]
[White "Quilter, Thomas A"]
[Black "Khoury, Theo"]
[Result "0-1"]
[TimeControl "15 minutes plus 10 seconds per move"]
[WhiteElo "2134"]
[BlackElo "1772"]

1. e4 {[%clk 00:14:28]} {[%emt 00:00:51]} c5 {[%clk 00:15:19]} 2. Nf3 {[%clk
00:14:36]} {[%emt 00:00:02]} d6 {[%clk 00:15:28]} {[%emt 00:00:02]} 3. c3
{[%clk 00:14:41]} {[%emt 00:00:05]} Nf6 {[%clk 00:15:35]} {[%emt 00:00:02]} 4.
Bd3 {[%clk 00:14:50]} {[%emt 00:00:01]} Nc6 {[%clk 00:15:17]} {[%emt 00:00:28]}
5. Bc2 {[%clk 00:14:58]} {[%emt 00:00:03]} e5 {[%clk 00:15:26]} 6. h3 {[%clk
00:13:52]} {[%emt 00:01:16]} g6 {[%clk 00:15:23]} {[%emt 00:00:13]} 7. d4
{[%clk 00:13:53]} {[%emt 00:00:09]} cxd4 {[%clk 00:15:20]} {[%emt 00:00:12]} 8.
cxd4 {[%clk 00:14:01]} {[%emt 00:00:01]} exd4 {[%clk 00:15:28]} {[%emt
00:00:02]} 9. Nxd4 {[%clk 00:13:58]} {[%emt 00:00:13]} Bg7 {[%clk 00:15:37]}
{[%emt 00:00:01]} 10. Be3 {[%clk 00:12:15]} {[%emt 00:01:54]} O-O {[%clk
00:15:37]} {[%emt 00:00:09]} 11. Nc3 {[%clk 00:12:23]} {[%emt 00:00:03]} d5
{[%clk 00:15:22]} {[%emt 00:00:25]} 12. Nxc6 {[%clk 00:10:22]} {[%emt
00:02:10]} bxc6 {[%clk 00:15:29]} {[%emt 00:00:03]} 13. O-O {[%clk 00:09:10]}
{[%emt 00:01:23]} Be6 {[%clk 00:15:02]} {[%emt 00:00:36]} 14. e5 {[%clk
00:08:05]} {[%emt 00:01:16]} Nd7 {[%clk 00:15:05]} {[%emt 00:00:06]} 15. f4
{[%clk 00:08:14]} {[%emt 00:00:02]} f6 {[%clk 00:14:44]} {[%emt 00:00:30]} 16.
exf6 {[%clk 00:06:43]} {[%emt 00:01:42]} Qxf6 {[%clk 00:14:48]} {[%emt
00:00:05]} 17. Ne2 {[%clk 00:06:09]} {[%emt 00:00:45]} c5 {[%clk 00:13:54]}
{[%emt 00:01:04]} 18. f5 {[%clk 00:05:07]} {[%emt 00:01:12]} gxf5 {[%clk
00:13:25]} {[%emt 00:00:39]} 19. Nf4 {[%clk 00:05:13]} {[%emt 00:00:03]} d4
{[%clk 00:11:52]} {[%emt 00:01:42]} 20. Nh5 {[%clk 00:05:05]} {[%emt 00:00:19]}
Qf7 {[%clk 00:11:28]} {[%emt 00:00:34]} 21. Nxg7 {[%clk 00:04:45]} {[%emt
00:00:30]} Qxg7 {[%clk 00:11:26]} {[%emt 00:00:12]} 22. Bf4 {[%clk 00:04:33]}
{[%emt 00:00:22]} Bd5 {[%clk 00:11:08]} {[%emt 00:00:28]} 23. Qd2 {[%clk
00:04:26]} {[%emt 00:00:18]} Rf6 {[%clk 00:09:23]} {[%emt 00:01:54]} 24. Rae1
{[%clk 00:04:00]} {[%emt 00:00:37]} Rg6 {[%clk 00:09:09]} {[%emt 00:00:24]} 25.
Rf2 {[%clk 00:03:53]} {[%emt 00:00:17]} Rf8 {[%clk 00:08:36]} {[%emt 00:00:42]}
26. b3 {[%clk 00:03:41]} {[%emt 00:00:23]} Kh8 {[%clk 00:07:40]} {[%emt
00:01:06]} 27. Kh2 {[%clk 00:03:28]} {[%emt 00:00:23]} Rg8 {[%clk 00:07:20]}
{[%emt 00:00:29]} 28. g3 {[%clk 00:02:55]} {[%emt 00:00:43]} Rxg3 {[%clk
00:07:17]} {[%emt 00:00:13]} 29. Re8 {[%clk 00:00:29]} {[%emt 00:02:37]} Rxh3+
{[%clk 00:07:21]} {[%emt 00:00:05]} 30. Kxh3 {[%clk 00:00:37]} {[%emt
00:00:02]} Qg4+ {[%clk 00:07:28]} {[%emt 00:00:03]} 31. Kh2 {[%clk 00:00:46]}
{[%emt 00:00:02]} Qh4# {[%clk 00:07:25]} {[%emt 00:00:03]} 0-1